[Event "EYCC Girls-U18 2019"]
[Site "Bratislava"]
[Date "2019.08.02"]
[Round "1.15"]
[White "Olde, Grete"]
[Black "Nestorovic, Katarina"]
[Result "1-0"]
[ECO "B23"]
[WhiteElo "1955"]
[BlackElo "2179"]
[Annotator "NA"]
[PlyCount "119"]
[EventDate "2019.08.02"]
[EventType "swiss"]
[EventCountry "SVK"]
[SourceTitle "playchess.com"]
[Source "ChessBase"]
[SourceQuality "1"]
[TimeControl "40/5400+30:1800+30"]

1. e4 {[%emt 0:00:00]} c5 {[%emt 0:00:00]} 2. Nc3 {[%emt 0:00:00]} d6 {[%emt 0:00:41]} 3. g3 {[%emt 0:00:00]} Nc6 {[%emt 0:00:25]} 4. Bg2 {[%emt 0:00:10]} g6 {[%emt 0:00:15]} 5. f4 {[%emt 0:00:22]} Bg7 {[%emt 0:00:10]} 6. Nf3 {[%emt 0:00:10]} e6 {[%emt 0:00:11]} 7. O-O {[%emt 0:00:17]} Nge7 {[%emt 0:00:24]} 8. d3 {[%emt 0:00:18]} Rb8 {[%emt 0:00:36]} 9. Be3 {[%emt 0:00:37]} O-O {[%emt 0:00:33]} 10. Qd2 {[%emt 0:01:21]} b5 {[%emt 0:01:39]} 11. d4 {[%emt 0:01:30]} Qb6 {[%emt 0:05:44]} 12. dxc5 {[%emt 0:07:46]} dxc5 {[%emt 0:00:28]} 13. Qf2 {[%emt 0:00:56]} Nd4 {[%emt 0:03:13]} 14. g4 {[%emt 0:10:42]} Ba6 {[%emt 0:06:54]} 15. Rfe1 {[%emt 0:07:27]} Rfd8 {[%emt 0:09:46]} 16. e5 {[%emt 0:09:46]} Bb7 {[%emt 0:05:17]} 17. Rad1 {[%emt 0:05:14]} Nxf3+ {[%emt 0:25:21]} 18. Bxf3 {[%emt 0:01:24]} Bxf3 {[%emt 0:00:15]} 19. Qxf3 {[%emt 0:00:07]} f5 {[%emt 0:05:36]} 20. Qf2 {[%emt 0:06:25]} fxg4 {[%emt 0:11:06]} 21. Bxc5 {[%emt 0:02:57]} Qb7 {[%emt 0:00:12]} 22. Bxa7 {[%emt 0:15:11]} Rxd1 {[%emt 0:00:47]} 23. Rxd1 {[%emt 0:00:32]} Rf8 {[%emt 0:01:21]} 24. Bd4 {[%emt 0:06:10]} g5 {[%emt 0:01:08]} 25. Qg3 {[%emt 0:04:22]} Nf5 {[%emt 0:08:08]} 26. Qg2 {[%emt 0:07:18]} Qxg2+ {[%emt 0:08:33]} 27. Kxg2 {[%emt 0:00:01]} Nxd4 {[%emt 0:00:10]} 28. Rxd4 {[%emt 0:00:02]} gxf4 {[%emt 0:00:11]} 29. Nxb5 {[%emt 0:08:57]} Bxe5 {[%emt 0:00:46]} 30. Re4 {[%emt 0:01:14]} Rf5 {[%emt 0:00:42]} 31. c3 {[%emt 0:00:58]} h5 {[%emt 0:00:28]} 32. Nd4 {[%emt 0:01:51]} f3+ {[%emt 0:00:50]} 33. Kf2 {[%emt 0:00:57]} Bxd4+ {[%emt 0:00:17]} 34. Rxd4 {[%emt 0:00:09]} e5 {[%emt 0:00:34]} 35. Re4 {[%emt 0:00:45]} Kf7 {[%emt 0:01:18]} 36. a4 {[%emt 0:01:02]} Ke6 {[%emt 0:00:28]} 37. a5 {[%emt 0:00:41]} Kd5 {[%emt 0:00:22]} 38. Ra4 {[%emt 0:00:07]} e4 {[%emt 0:03:32]} 39. a6 {[%emt 0:00:29]} Rf8 {[%emt 0:00:13]} 40. a7 {[%emt 0:00:00]} e3+ {[%emt 0:00:00]} 41. Kxe3 {[%emt 0:02:10]} Ra8 {[%emt 0:02:00]} 42. h3 {[%emt 0:02:44]} Kc5 {[%emt 0:01:51]} 43. hxg4 {[%emt 0:01:57]} hxg4 {[%emt 0:00:15]} 44. Rxg4 {[%emt 0:00:20]} Rxa7 {[%emt 0:00:09]} 45. Kxf3 {[%emt 0:00:06]} Re7 {[%emt 0:00:43]} 46. Re4 {[%emt 0:01:11]} Rb7 {[%emt 0:00:24]} 47. b4+ {[%emt 0:00:16]} Kb5 {[%emt 0:00:07]} 48. Ke3 {[%emt 0:00:25]} Rc7 {[%emt 0:00:21]} 49. Kd3 {[%emt 0:00:08]} Ka4 {[%emt 0:00:11]} 50. Re1 {[%emt 0:01:51]} Rc8 {[%emt 0:00:37]} 51. Kc2 {[%emt 0:00:25]} Kb5 {[%emt 0:01:56]} 52. Kb3 {[%emt 0:00:11]} Rf8 {[%emt 0:00:34]} 53. Re5+ {[%emt 0:00:43]} Kc6 {[%emt 0:00:08]} 54. b5+ {[%emt 0:00:09]} Kb6 {[%emt 0:00:05]} 55. Kb4 {[%emt 0:00:09]} Rf4+ {[%emt 0:00:05]} 56. c4 {[%emt 0:00:04]} Rh4 {[%emt 0:00:09]} 57. Rd5 {[%emt 0:00:26]} Rg4 {[%emt 0:00:11]} 58. Rd6+ {[%emt 0:00:14]} Kc7 {[%emt 0:00:08]} 59. Rh6 {[%emt 0:00:15]} Rf4 {[%emt 0:00:10]} 60. b6+ {[%emt 0:00:08]} 1-0

[Event "EYCC Girls-U18 2019"]
[Site "Bratislava"]
[Date "2019.08.02"]
[Round "1.16"]
[White "Ziegenfuss, Antonia"]
[Black "Vidmar, Klara"]
[Result "1-0"]
[ECO "D10"]
[WhiteElo "2063"]
[BlackElo "1821"]
[Annotator "NA"]
[PlyCount "51"]
[EventDate "2019.08.02"]
[EventType "swiss"]
[EventCountry "SVK"]
[SourceTitle "playchess.com"]
[Source "ChessBase"]
[SourceQuality "1"]
[TimeControl "40/5400+30:1800+30"]

1. d4 {[%emt 0:00:00]} d5 {[%emt 0:00:00]} 2. c4 {[%emt 0:00:00]} c6 {[%emt 0:00:00]} 3. Nc3 {[%emt 0:00:00]} Nf6 {[%emt 0:00:00]} 4. cxd5 {[%emt 0:00:00]} cxd5 {[%emt 0:00:10]} 5. f3 {[%emt 0:00:00]} Nc6 {[%emt 0:01:16]} 6. e4 {[%emt 0:00:09]} dxe4 {[%emt 0:02:26]} 7. d5 {[%emt 0:00:08]} Ne5 {[%emt 0:05:27]} 8. fxe4 {[%emt 0:00:07]} e6 {[%emt 0:02:36]} 9. Nf3 {[%emt 0:01:29]} Nxf3+ {[%emt 0:02:06]} 10. Qxf3 {[%emt 0:00:08]} exd5 {[%emt 0:06:11]} 11. Bb5+ {[%emt 0:01:03]} Bd7 {[%emt 0:00:45]} 12. e5 {[%emt 0:00:13]} Ne4 {[%emt 0:11:45]} 13. Rf1 {[%emt 0:00:17]} f6 {[%emt 0:04:18]} 14. exf6 {[%emt 0:00:32]} Nxf6 {[%emt 0:03:26]} 15. Qe2+ {[%emt 0:00:12]} Qe7 {[%emt 0:01:40]} 16. Bxd7+ {[%emt 0:03:01]} Kxd7 {[%emt 0:03:22]} 17. Be3 {[%emt 0:01:00]} Re8 {[%emt 0:03:19]} 18. Rf3 {[%emt 0:07:45]} Qb4 {[%emt 0:03:58]} 19. O-O-O {[%emt 0:06:19]} Rc8 {[%emt 0:09:16]} 20. Rd4 {[%emt 0:11:48]} Qa5 {[%emt 0:06:38]} 21. Kb1 {[%emt 0:09:27]} Bd6 {[%emt 0:03:24]} 22. Rxf6 {[%emt 0:09:50]} gxf6 {[%emt 0:01:00]} 23. Qg4+ {[%emt 0:01:03]} Kc6 {[%emt 0:03:57]} 24. Rxd5 {[%emt 0:06:18]} Qxd5 {[%emt 0:01:42]} 25. Qa4+ {[%emt 0:01:33]} b5 {[%emt 0:02:05]} 26. Qa6+ {[%emt 0:00:09]} 1-0

[Event "EYCC Girls-U18 2019"]
[Site "Bratislava"]
[Date "2019.08.02"]
[Round "1.17"]
[White "Muha, Magdalena"]
[Black "Kochukova, Anna"]
[Result "0-1"]
[ECO "A46"]
[WhiteElo "1797"]
[BlackElo "2148"]
[Annotator "NA"]
[PlyCount "64"]
[EventDate "2019.08.02"]
[EventType "swiss"]
[EventCountry "SVK"]
[SourceTitle "playchess.com"]
[Source "ChessBase"]
[SourceQuality "1"]
[TimeControl "40/5400+30:1800+30"]

1. d4 {[%emt 0:00:00]} Nf6 {[%emt 0:00:00]} 2. Nf3 {[%emt 0:00:18]} b5 {[%emt 0:00:12]} 3. Bf4 {[%emt 0:02:33]} Bb7 {[%emt 0:00:40]} 4. e3 {[%emt 0:01:51]} a6 {[%emt 0:00:13]} 5. c4 {[%emt 0:04:03]} bxc4 {[%emt 0:00:16]} 6. Bxc4 {[%emt 0:00:09]} e6 {[%emt 0:00:13]} 7. Qb3 {[%emt 0:08:20]} Bxf3 {[%emt 0:05:33]} 8. gxf3 {[%emt 0:00:10]} Nc6 {[%emt 0:01:01]} 9. Qd3 {[%emt 0:05:34]} Nh5 {[%emt 0:21:13]} 10. Bg3 {[%emt 0:02:13]} Nxg3 {[%emt 0:01:27]} 11. hxg3 {[%emt 0:03:08]} Qf6 {[%emt 0:02:16]} 12. f4 {[%emt 0:06:33]} Nb4 {[%emt 0:09:52]} 13. Qe2 {[%emt 0:04:33]} Qg6 {[%emt 0:03:47]} 14. Kf1 {[%emt 0:04:39]} Qe4 {[%emt 0:11:27]} 15. Kg1 {[%emt 0:03:45]} Qb7 {[%emt 0:06:55]} 16. Nc3 {[%emt 0:05:11]} Be7 {[%emt 0:02:29]} 17. a3 {[%emt 0:02:43]} Nd5 {[%emt 0:02:42]} 18. Bd3 {[%emt 0:12:58]} g6 {[%emt 0:04:22]} 19. Ne4 {[%emt 0:01:48]} a5 {[%emt 0:03:12]} 20. Rc1 {[%emt 0:03:57]} Rb8 {[%emt 0:02:38]} 21. Rc2 {[%emt 0:00:34]} Nf6 {[%emt 0:05:31]} 22. Ng5 {[%emt 0:03:05]} Qb6 {[%emt 0:02:39]} 23. Kh2 {[%emt 0:01:48]} h5 {[%emt 0:01:15]} 24. f3 {[%emt 0:02:08]} h4 {[%emt 0:02:59]} 25. Kg2 {[%emt 0:01:20]} c5 {[%emt 0:01:39]} 26. dxc5 {[%emt 0:01:19]} Bxc5 {[%emt 0:00:13]} 27. e4 {[%emt 0:01:48]} Ke7 {[%emt 0:02:08]} 28. gxh4 {[%emt 0:01:16]} Nh5 {[%emt 0:01:08]} 29. Nh3 {[%emt 0:01:30]} Be3 {[%emt 0:00:27]} 30. f5 {[%emt 0:00:47]} gxf5 {[%emt 0:00:17]} 31. exf5 {[%emt 0:00:07]} Rhg8+ {[%emt 0:01:09]} 32. Kh2 {[%emt 0:00:07]} Qd6+ {[%emt 0:00:55]} 0-1

[Event "EYCC Girls-U18 2019"]
[Site "Bratislava"]
[Date "2019.08.02"]
[Round "1.18"]
[White "Nilssen, Ellen Fredericia"]
[Black "Ucekajova, Veronika"]
[Result "1-0"]
[ECO "A90"]
[WhiteElo "2155"]
[BlackElo "1836"]
[Annotator "NA"]
[PlyCount "63"]
[EventDate "2019.08.02"]
[EventType "swiss"]
[EventCountry "SVK"]
[SourceTitle "playchess.com"]
[Source "ChessBase"]
[SourceQuality "1"]
[TimeControl "40/5400+30:1800+30"]

1. d4 {[%emt 0:00:00]} e6 {[%emt 0:00:00]} 2. c4 {[%emt 0:00:11]} f5 {[%emt 0:00:25]} 3. g3 {[%emt 0:01:56]} Nf6 {[%emt 0:00:52]} 4. Bg2 {[%emt 0:00:11]} c6 {[%emt 0:01:07]} 5. Nf3 {[%emt 0:01:03]} d5 {[%emt 0:00:37]} 6. O-O {[%emt 0:01:08]} Bd6 {[%emt 0:00:38]} 7. b3 {[%emt 0:00:10]} Qe7 {[%emt 0:00:38]} 8. Ne5 {[%emt 0:02:48]} O-O {[%emt 0:04:59]} 9. Bb2 {[%emt 0:02:58]} b6 {[%emt 0:03:50]} 10. cxd5 {[%emt 0:05:32]} cxd5 {[%emt 0:01:34]} 11. Nc4 {[%emt 0:00:37]} Re8 {[%emt 0:30:14]} 12. Nxd6 {[%emt 0:01:14]} Qxd6 {[%emt 0:00:10]} 13. Ba3 {[%emt 0:04:14]} Qd7 {[%emt 0:01:21]} 14. Nd2 {[%emt 0:00:26]} Nc6 {[%emt 0:02:31]} 15. Nf3 {[%emt 0:00:40]} a5 {[%emt 0:11:33]} 16. Rc1 {[%emt 0:08:37]} Ba6 {[%emt 0:02:20]} 17. Ne5 {[%emt 0:11:56]} Nxe5 {[%emt 0:03:37]} 18. dxe5 {[%emt 0:00:05]} Ne4 {[%emt 0:01:38]} 19. Qd4 {[%emt 0:04:43]} Qb7 {[%emt 0:11:46]} 20. Rc2 {[%emt 0:09:04]} Rac8 {[%emt 0:02:45]} 21. Rfc1 {[%emt 0:00:20]} Qb8 {[%emt 0:08:59]} 22. Bxe4 {[%emt 0:07:42]} fxe4 {[%emt 0:00:19]} 23. Bd6 {[%emt 0:00:09]} Rxc2 {[%emt 0:04:46]} 24. Rxc2 {[%emt 0:00:05]} Qd8 {[%emt 0:00:09]} 25. Bc7 {[%emt 0:03:13]} Qg5 {[%emt 0:00:13]} 26. Qxb6 {[%emt 0:00:26]} Bd3 {[%emt 0:01:44]} 27. exd3 {[%emt 0:03:11]} exd3 {[%emt 0:00:02]} 28. Qb5 {[%emt 0:00:08]} Qg6 {[%emt 0:01:04]} 29. Rd2 {[%emt 0:01:17]} Rc8 {[%emt 0:00:36]} 30. Qd7 {[%emt 0:00:54]} Rf8 {[%emt 0:00:46]} 31. Bd6 {[%emt 0:00:47]} Re8 {[%emt 0:01:25]} 32. Rxd3 {[%emt 0:00:33]} 1-0

[Event "EYCC Girls-U18 2019"]
[Site "Bratislava"]
[Date "2019.08.02"]
[Round "1.19"]
[White "Silva, Ana Ines Teixeira Da"]
[Black "Maksimovic, Masa"]
[Result "0-1"]
[ECO "B06"]
[WhiteElo "1730"]
[BlackElo "2102"]
[Annotator "ChessBase"]
[PlyCount "186"]
[EventDate "2019.08.02"]
[EventType "swiss"]
[EventCountry "SVK"]
[SourceTitle "playchess.com"]
[Source "ChessBase"]
[SourceQuality "1"]
[TimeControl "40/5400+30:1800+30"]

1. e4 {[%emt 0:00:00]} g6 {[%emt 0:00:16]} 2. d4 {[%emt 0:00:51]} Bg7 {[%emt 0:00:09]} 3. Nc3 {[%emt 0:00:40]} d6 {[%emt 0:00:53]} 4. g3 {[%emt 0:02:13]} Nf6 {[%emt 0:00:21]} 5. Bg2 {[%emt 0:00:30]} O-O {[%emt 0:00:08]} 6. Nge2 {[%emt 0:01:52]} Nbd7 {[%emt 0:00:18]} 7. O-O {[%emt 0:02:09]} c5 {[%emt 0:00:13]} 8. d5 {[%emt 0:05:55]} Rb8 {[%emt 0:01:34]} 9. a4 {[%emt 0:05:04]} b6 {[%emt 0:00:21]} 10. h3 {[%emt 0:00:32]} a6 {[%emt 0:00:09]} 11. g4 {[%emt 0:04:33]} Ne8 {[%emt 0:05:04]} 12. Ng3 {[%emt 0:06:55]} Nc7 {[%emt 0:01:48]} 13. Nce2 {[%emt 0:15:17]} b5 {[%emt 0:01:27]} 14. axb5 {[%emt 0:07:48]} axb5 {[%emt 0:05:10]} 15. c3 {[%emt 0:07:06]} Bb7 {[%emt 0:43:03]} 16. Be3 {[%emt 0:13:35]} Nb6 {[%emt 0:05:18]} 17. Qc1 {[%emt 0:08:28]} Re8 {[%emt 0:02:47]} 18. Bh6 {[%emt 0:00:47]} Bh8 {[%emt 0:00:21]} 19. f4 {[%emt 0:02:00]} e6 {[%emt 0:15:16]} 20. dxe6 {[%emt 0:05:38]} Rxe6 {[%emt 0:02:13]} 21. f5 {[%emt 0:01:33]} Re8 {[%emt 0:00:04]} 22. fxg6 {[%emt 0:01:56]} fxg6 {[%emt 0:01:28]} 23. Qf4 {[%emt 0:00:24]} Qe7 {[%emt 0:01:21]} 24. h4 {[%emt 0:04:38]} Be5 {[%emt 0:00:35]} 25. Qf2 {[%emt 0:00:38]} Ne6 {[%emt 0:01:07]} 26. h5 {[%emt 0:00:46]} Ng7 {[%emt 0:01:28]} 27. hxg6 {[%emt 0:00:24]} hxg6 {[%emt 0:00:05]} 28. b3 {[%emt 0:00:52]} Rf8 {[%emt 0:00:19]} 29. Qe3 {[%emt 0:00:06]} Rxf1+ {[%emt 0:01:57]} 30. Rxf1 {[%emt 0:00:10]} Rf8 {[%emt 0:00:12]} 31. Bg5 {[%emt 0:01:10]} Rxf1+ {[%emt 0:00:23]} 32. Nxf1 {[%emt 0:00:10]} Qf7 {[%emt 0:01:27]} 33. b4 {[%emt 0:00:38]} Nc4 {[%emt 0:00:17]} 34. Qf2 {[%emt 0:00:39]} Ne6 {[%emt 0:02:29]} 35. Qxf7+ {[%emt 0:00:28]} Kxf7 {[%emt 0:00:05]} 36. Bh4 {[%emt 0:00:25]} cxb4 {[%emt 0:01:59]} 37. cxb4 {[%emt 0:00:08]} Nd4 {[%emt 0:00:26]} 38. Nc3 {[%emt 0:01:10]} Nf3+ {[%emt 0:01:18]} 39. Bxf3 {[%emt 0:00:04]} Bxc3 {[%emt 0:00:04]} 40. Bg3 {[%emt 0:00:00]} Bxb4 {[%emt 0:00:00]} 41. Kf2 {[%emt 0:01:07]} Bc8 {[%emt 0:07:51]} 42. Ke2 {[%emt 0:11:12]} Kf6 {[%emt 0:04:36]} 43. Bf4 {[%emt 0:08:04]} g5 {[%emt 0:03:18]} 44. Bc1 {[%emt 0:02:07]} Bc5 {[%emt 0:13:40]} 45. Ng3 {[%emt 0:04:58]} b4 {[%emt 0:01:00]} 46. e5+ {[%emt 0:05:09]} Nxe5 {[%emt 0:03:28]} 47. Ne4+ {[%emt 0:00:07]} Kg6 {[%emt 0:00:18]} 48. Bxg5 {[%emt 0:02:14]} Ba6+ {[%emt 0:02:51]} 49. Kd1 {[%emt 0:00:23]} Nxf3 {[%emt 0:01:47]} 50. Nxc5 {[%emt 0:00:26]} dxc5 {[%emt 0:00:03]} 51. Be7 {[%emt 0:00:05]} b3 {[%emt 0:01:55]} 52. Bxc5 {[%emt 0:00:25]} Bd3 {[%emt 0:00:32]} 53. Kc1 {[%emt 0:00:43]} Kg5 {[%emt 0:00:07]} 54. Kb2 {[%emt 0:00:29]} Bc2 {[%emt 0:00:02]} 55. Bb4 {[%emt 0:00:49]} Kxg4 {[%emt 0:00:06]} 56. Bc3 {[%emt 0:00:13]} Kf5 {[%emt 0:00:04]} 57. Kc1 {[%emt 0:00:55]} Ke4 {[%emt 0:00:03]} 58. Kb2 {[%emt 0:00:19]} Kd3 {[%emt 0:00:05]} 59. Bh8 {[%emt 0:00:37]} Nd2 {[%emt 0:00:43]} 60. Bg7 {[%emt 0:00:15]} Nc4+ {[%emt 0:00:12]} 61. Kc1 {[%emt 0:00:21]} Ke4 {[%emt 0:00:18]} 62. Bh8 {[%emt 0:00:23]} Kd5 {[%emt 0:00:03]} 63. Bg7 {[%emt 0:00:11]} Kc5 {[%emt 0:00:03]} 64. Bf8+ {[%emt 0:00:31]} Kb5 {[%emt 0:00:02]} 65. Bg7 {[%emt 0:00:17]} Ka4 {[%emt 0:00:46]} 66. Bf8 {[%emt 0:01:31]} Bg6 {[%emt 0:00:07]} 67. Bg7 {[%emt 0:00:11]} Ka3 {[%emt 0:00:30]} 68. Bf8+ {[%emt 0:00:41]} Ka2 {[%emt 0:01:01]} 69. Bg7 {[%emt 0:00:05]} b2+ {[%emt 0:01:04]} 70. Bxb2 {[%emt 0:00:06]} Nxb2 {[%emt 0:00:02]} 71. Kd2 {[%emt 0:00:09]} Kb3 {[%emt 0:00:06]} 72. Ke3 {[%emt 0:00:07]} Kc3 {[%emt 0:00:22]} 73. Kf4 {[%emt 0:00:18]} Kd4 {[%emt 0:00:08]} 74. Kg5 {[%emt 0:00:14]} Be4 {[%emt 0:00:08]} 75. Kf6 {[%emt 0:00:25]} Nc4 {[%emt 0:00:17]} 76. Ke6 {[%emt 0:00:22]} Ne3 {[%emt 0:00:34]} 77. Kd6 {[%emt 0:00:20]} Bd5 {[%emt 0:00:04]} 78. Ke7 {[%emt 0:00:30]} Ke5 {[%emt 0:00:05]} 79. Kd7 {[%emt 0:00:08]} Nc4 {[%emt 0:00:59]} 80. Kc7 {[%emt 0:00:20]} Ke6 {[%emt 0:00:10]} 81. Kd8 {[%emt 0:00:56]} Bc6 {[%emt 0:00:55]} 82. Kc7 {[%emt 0:00:20]} Bb5 {[%emt 0:00:12]} 83. Kd8 {[%emt 0:01:10]} Ba4 {[%emt 0:00:22]} 84. Kc7 {[%emt 0:00:14]} Ke7 {[%emt 0:00:03]} 85. Kc8 {[%emt 0:00:13]} Bb5 {[%emt 0:00:53]} 86. Kc7 {[%emt 0:00:17]} Bd7 {[%emt 0:00:10]} 87. Kb7 {[%emt 0:00:17]} Kd6 {[%emt 0:00:24]} 88. Ka7 {[%emt 0:00:57]} Kc6 {[%emt 0:00:07]} 89. Ka6 {[%emt 0:00:14]} Kc7 {[%emt 0:00:50]} 90. Ka7 {[%emt 0:00:14]} Bc8 {[%emt 0:00:25]} 91. Ka8 {[%emt 0:00:14]} Ne5 {[%emt 0:00:22]} 92. Ka7 {[%emt 0:00:14]} Nc6+ {[%emt 0:00:13]} 93. Ka8 {[%emt 0:00:07]} Bb7# {[%emt 0:00:11]} 0-1

[Event "EYCC Girls-U18 2019"]
[Site "Bratislava"]
[Date "2019.08.02"]
[Round "1.20"]
[White "Grigorieva, Yulia"]
[Black "Smetisko, Marija"]
[Result "1-0"]
[ECO "D82"]
[WhiteElo "2096"]
[BlackElo "1814"]
[Annotator "NA"]
[PlyCount "63"]
[EventDate "2019.08.02"]
[EventType "swiss"]
[EventCountry "SVK"]
[SourceTitle "playchess.com"]
[Source "ChessBase"]
[SourceQuality "1"]
[TimeControl "40/5400+30:1800+30"]

1. d4 {[%emt 0:00:00]} Nf6 {[%emt 0:00:00]} 2. c4 {[%emt 0:00:00]} g6 {[%emt 0:00:00]} 3. Nc3 {[%emt 0:00:00]} d5 {[%emt 0:00:00]} 4. Bf4 {[%emt 0:00:13]} c6 {[%emt 0:05:34]} 5. e3 {[%emt 0:03:42]} Bg7 {[%emt 0:01:30]} 6. Nf3 {[%emt 0:00:57]} Qb6 {[%emt 0:12:17]} 7. Qd2 {[%emt 0:08:50]} Na6 {[%emt 0:05:00]} 8. h3 {[%emt 0:11:26]} Bf5 {[%emt 0:12:01]} 9. Be2 {[%emt 0:08:13]} O-O {[%emt 0:07:27]} 10. c5 {[%emt 0:02:57]} Qa5 {[%emt 0:03:34]} 11. O-O {[%emt 0:01:24]} b6 {[%emt 0:07:16]} 12. a3 {[%emt 0:10:59]} b5 {[%emt 0:05:17]} 13. Nxd5 {[%emt 0:02:36]} Qd8 {[%emt 0:02:00]} 14. Nxf6+ {[%emt 0:03:01]} Bxf6 {[%emt 0:00:45]} 15. a4 {[%emt 0:02:28]} Nc7 {[%emt 0:03:06]} 16. Bxc7 {[%emt 0:01:53]} Qxc7 {[%emt 0:00:01]} 17. axb5 {[%emt 0:00:46]} cxb5 {[%emt 0:00:41]} 18. Bxb5 {[%emt 0:03:17]} Qb7 {[%emt 0:02:00]} 19. Ba6 {[%emt 0:02:17]} Qd5 {[%emt 0:01:13]} 20. Qe2 {[%emt 0:02:41]} Rab8 {[%emt 0:01:51]} 21. Bc4 {[%emt 0:02:38]} Qe4 {[%emt 0:04:13]} 22. Ne1 {[%emt 0:07:25]} Kh8 {[%emt 0:08:12]} 23. Rxa7 {[%emt 0:03:52]} Rfc8 {[%emt 0:03:52]} 24. Bd3 {[%emt 0:02:04]} Qh4 {[%emt 0:03:37]} 25. Nf3 {[%emt 0:04:23]} Qh5 {[%emt 0:01:46]} 26. e4 {[%emt 0:01:17]} Bxh3 {[%emt 0:08:12]} 27. gxh3 Qxh3 28. e5 {[%emt 0:05:00]} Rxb2 {[%emt 0:01:54]} 29. Qe4 {[%emt 0:00:50]} Rcb8 {[%emt 0:00:29]} 30. exf6 {[%emt 0:01:31]} R2b3 {[%emt 0:00:37]} 31. Rxe7 Rg8 {[%emt 0:00:30]} 32. Ng5 {[%emt 0:01:57]} 1-0

[Event "EYCC Girls-U18 2019"]
[Site "Bratislava"]
[Date "2019.08.02"]
[Round "1.21"]
[White "Kouta, Antonia"]
[Black "Palma, Maria"]
[Result "0-1"]
[ECO "B58"]
[WhiteElo "1762"]
[BlackElo "2137"]
[Annotator "NA"]
[PlyCount "96"]
[EventDate "2019.08.02"]
[EventType "swiss"]
[EventCountry "SVK"]
[SourceTitle "playchess.com"]
[Source "ChessBase"]
[SourceQuality "1"]
[TimeControl "40/5400+30:1800+30"]

1. e4 {[%emt 0:00:00]} c5 {[%emt 0:00:06]} 2. Nf3 {[%emt 0:00:00]} Nc6 {[%emt 0:00:25]} 3. d4 {[%emt 0:00:00]} cxd4 {[%emt 0:00:06]} 4. Nxd4 {[%emt 0:00:00]} Nf6 {[%emt 0:00:25]} 5. Nc3 {[%emt 0:01:47]} d6 {[%emt 0:00:33]} 6. Be2 {[%emt 0:02:22]} g6 {[%emt 0:03:10]} 7. Be3 {[%emt 0:03:17]} Bg7 {[%emt 0:00:37]} 8. f3 {[%emt 0:04:35]} O-O {[%emt 0:01:29]} 9. Qd2 {[%emt 0:03:25]} d5 {[%emt 0:01:47]} 10. O-O-O {[%emt 0:10:51]} dxe4 {[%emt 0:11:03]} 11. Nxc6 {[%emt 0:10:20]} Qxd2+ {[%emt 0:00:10]} 12. Bxd2 {[%emt 0:04:32]} bxc6 {[%emt 0:00:09]} 13. fxe4 {[%emt 0:02:16]} Be6 {[%emt 0:11:14]} 14. h3 {[%emt 0:05:02]} Rfb8 {[%emt 0:08:43]} 15. b3 {[%emt 0:12:56]} a5 {[%emt 0:09:51]} 16. Bf3 {[%emt 0:02:56]} Nd7 {[%emt 0:08:55]} 17. Na4 {[%emt 0:03:53]} c5 {[%emt 0:08:11]} 18. c4 {[%emt 0:04:57]} Bd4 {[%emt 0:04:02]} 19. Bc3 {[%emt 0:03:47]} Bxc3 {[%emt 0:12:06]} 20. Nxc3 {[%emt 0:00:04]} Nb6 {[%emt 0:00:38]} 21. a4 {[%emt 0:07:47]} Nd7 {[%emt 0:04:34]} 22. Kc2 {[%emt 0:03:43]} Ne5 {[%emt 0:00:32]} 23. Be2 {[%emt 0:01:30]} Nc6 {[%emt 0:05:44]} 24. Nb5 {[%emt 0:01:25]} Rf8 {[%emt 0:01:47]} 25. Bf3 {[%emt 0:03:51]} Rac8 {[%emt 0:00:13]} 26. Rd2 {[%emt 0:01:06]} Ne5 {[%emt 0:00:53]} 27. Be2 {[%emt 0:01:49]} f5 {[%emt 0:00:40]} 28. exf5 {[%emt 0:02:18]} Bxf5+ {[%emt 0:00:01]} 29. Kc3 {[%emt 0:00:37]} Nc6 {[%emt 0:01:09]} 30. Bf3 {[%emt 0:01:12]} Rf6 {[%emt 0:04:30]} 31. Bd5+ {[%emt 0:02:10]} Kf8 {[%emt 0:00:14]} 32. Bxc6 {[%emt 0:00:34]} Rcxc6 {[%emt 0:00:07]} 33. Rd8+ {[%emt 0:00:14]} Kg7 {[%emt 0:01:04]} 34. Rhd1 {[%emt 0:00:24]} Rfe6 {[%emt 0:00:50]} 35. R1d2 {[%emt 0:01:04]} Re3+ {[%emt 0:00:36]} 36. Kb2 {[%emt 0:00:04]} Rg3 {[%emt 0:00:24]} 37. Nc3 {[%emt 0:00:59]} Re6 {[%emt 0:00:34]} 38. Nd5 {[%emt 0:00:33]} Re1 {[%emt 0:00:12]} 39. Rb8 {[%emt 0:00:37]} e6 {[%emt 0:01:03]} 40. Rb7+ {[%emt 0:00:00]} Kh6 {[%emt 0:00:00]} 41. Nf6 {[%emt 0:06:31]} Kg5 {[%emt 0:04:36]} 42. Nd7 {[%emt 0:04:50]} e5 {[%emt 0:04:36]} 43. Nxc5 {[%emt 0:03:30]} e4 {[%emt 0:00:30]} 44. Nxe4+ {[%emt 0:03:53]} Bxe4 {[%emt 0:02:17]} 45. Rb6 {[%emt 0:03:09]} Kf4 {[%emt 0:02:23]} 46. c5 {[%emt 0:01:03]} Ke3 {[%emt 0:00:21]} 47. Rbd6 {[%emt 0:00:30]} Rb1+ {[%emt 0:02:14]} 48. Ka2 {[%emt 0:01:10]} Rc1 {[%emt 0:00:44]} 0-1